bitfinex/quotes_SOLUSD_20230103
["timestamp","ask_amount","ask_price","bid_price","bid_amount"]
[1672757682098,176.1327,12.326,12.311,62.92700645]
[1672757682499,176.1327,12.326,12.312,30.0]
[1672757682930,115.2227,12.326,12.313,62.92700645]
[1672757683569,60.9,12.328,12.313,62.92700645]
[1672757683785,312.0,12.328,12.314,30.0]
[1672757684182,312.0,12.328,12.315,62.92700645]
[1672757684608,312.0,12.328,12.316,30.0]
[1672757684936,312.0,12.328,12.317,62.92700645]
[1672757685138,312.0,12.328,12.318,30.0]
[1672757685458,312.0,12.328,12.319,62.92700645]
[1672757686081,176.86366679,12.332,12.319,62.92700645]
[1672757686399,115.98366679,12.332,12.319,62.92700645]
[1672757686633,115.98366679,12.332,12.32,30.0]
[1672757687015,34.07899638,12.332,12.324,41.58122736]
[1672757687229,20.0,12.333,12.332,44.23975522]
[1672757687446,20.0,12.333,12.332,15.74165301]
[1672757687668,20.0,12.333,12.326,92.16200675]
[1672757687862,20.0,12.333,12.332,74.10444125]
[1672757688075,20.0,12.333,12.332,92.16200675]
[1672757688288,20.0,12.333,12.332,74.10444125]
[1672757688800,60.82,12.344,12.332,74.10444125]
[1672757689012,60.8,12.348,12.333,18.0575655]
[1672757689238,312.0,12.344,12.332,74.10444125]
[1672757689430,312.0,12.344,12.334,74.10444125]
[1672757690171,30.0,12.343,12.334,74.10444125]
[1672757690502,312.0,12.344,12.334,74.10444125]
[1672757691952,30.0,12.343,12.334,74.10444125]
[1672757692175,30.0,12.366,12.334,74.10444125]
[1672757692389,30.0,12.366,12.335,30.0]
[1672757692812,60.72,12.365,12.336,81.94948772]
[1672757693031,60.72,12.365,12.336,74.57251158]
[1672757693220,60.72,12.365,12.337,74.57251158]
[1672757693536,30.0,12.364,12.337,74.57251158]
[1672757693741,60.73,12.363,12.337,74.57251158]
[1672757693957,60.8,12.349,12.337,74.57251158]
[1672757694166,60.8,12.349,12.324,30.0]
[1672757694371,30.0,12.348,12.326,69.63251158]
[1672757694587,60.81,12.347,12.326,69.63251158]
[1672757695115,30.0,12.346,12.327,30.0]
[1672757695334,60.82,12.345,12.327,30.0]
[1672757695530,30.0,12.344,12.329,30.0]
[1672757696052,30.0,12.344,12.327,30.0]
[1672757696053,30.0,12.344,12.33,69.63251158]
[1672757696583,60.83,12.343,12.33,69.63251158]
[1672757696792,30.0,12.342,12.33,69.63251158]
[1672757697002,60.84,12.341,12.33,69.63251158]
[1672757697227,30.0,12.34,12.33,69.63251158]
[1672757697552,30.0,12.338,12.33,69.63251158]
[1672757697761,60.86,12.337,12.33,69.63251158]
[1672757697942,30.0,12.336,12.33,69.63251158]
[1672757699015,60.86,12.337,12.33,69.63251158]
[1672757699626,60.86,12.337,12.32,30.0]
[1672757699839,30.0,12.335,12.32,30.0]
[1672757700166,30.0,12.335,12.322,30.0]
[1672757700375,30.0,12.335,12.321,69.63251158]
[1672757700595,30.0,12.335,12.323,69.63251158]
[1672757701851,90.87,12.335,12.323,69.63251158]
[1672757702369,60.87,12.335,12.323,69.63251158]
[1672757702588,118.3465,12.336,12.323,69.63251158]
[1672757702790,118.3465,12.336,12.324,30.0]
[1672757703230,60.82,12.345,12.325,69.63251158]
[1672757703531,114.0638,12.343,12.326,30.0]
[1672757703934,114.0638,12.343,12.327,69.63251158]
[1672757704458,30.0,12.342,12.327,69.63251158]
[1672757705531,114.0638,12.343,12.327,69.63251158]
[1672757705740,60.83,12.342,12.327,69.63251158]
[1672757706051,30.0,12.341,12.327,69.63251158]
[1672757706782,114.0638,12.343,12.328,30.0]
[1672757707207,114.0638,12.343,12.329,69.63251158]
[1672757707401,60.77,12.354,12.329,69.63251158]
[1672757707613,823.70972248,12.369,12.343,75.53964218]
[1672757707948,116.5005,12.363,12.331,98.92438461]
[1672757708144,30.0,12.362,12.332,33.20176604]
[1672757708366,30.0,12.362,12.332,30.0]
[1672757708562,30.0,12.362,12.333,98.92438461]
[1672757708999,30.0,12.362,12.334,30.0]
[1672757709188,60.74,12.361,12.334,30.0]
[1672757709405,30.0,12.36,12.335,98.92438461]
[1672757709947,30.0,12.36,12.336,30.0]
[1672757710352,30.0,12.36,12.337,98.92438461]
[1672757710661,30.0,12.36,12.338,30.0]
[1672757711080,30.0,12.36,12.34,30.0]
[1672757711314,28.71988033,12.36,12.34,30.0]
[1672757711512,28.71988033,12.36,12.341,98.92438461]
[1672757711932,30.0,12.358,12.341,98.92438461]
[1672757712144,60.76,12.357,12.341,98.92438461]
[1672757712361,30.0,12.356,12.341,98.92438461]
[1672757712583,60.77,12.355,12.341,98.92438461]
[1672757712783,30.0,12.354,12.341,98.92438461]
[1672757713605,28.71988033,12.36,12.329,109.7737]
[1672757713823,28.71988033,12.36,12.333,98.92438461]
[1672757714258,28.71988033,12.36,12.334,30.0]
[1672757714575,28.71988033,12.36,12.335,71.92456568]
[1672757714768,28.71988033,12.36,12.336,30.0]
[1672757715189,60.72,12.365,12.337,71.92456568]
[1672757715504,90.71,12.367,12.337,71.92456568]
[1672757715707,60.72,12.365,12.338,30.0]
[1672757716145,60.72,12.365,12.34,30.0]
[1672757716365,90.71,12.367,12.34,30.0]
[1672757716578,90.71,12.367,12.341,71.92456568]
[1672757716890,525.72163311,12.369,12.343,3.53803523]
[1672757717295,30.0,12.367,12.344,71.92456568]
[1672757717506,30.0,12.367,12.345,30.0]
[1672757718038,90.71,12.367,12.346,71.92456568]
[1672757719723,90.71,12.367,12.337,111.4389]
[1672757720346,90.71,12.367,12.321,30.0]
[1672757720549,90.71,12.367,12.333,64.21123234]
[1672757720760,90.71,12.367,12.33,30.0]
[1672757720972,90.71,12.367,12.33,94.21123234]
[1672757721402,90.71,12.367,12.331,64.21123234]
[1672757722353,90.71,12.367,12.332,30.0]
[1672757722754,90.71,12.367,12.333,64.21123234]
[1672757723179,90.71,12.367,12.334,30.0]
[1672757723611,90.71,12.367,12.336,30.0]
[1672757724028,90.71,12.367,12.337,64.21123234]
[1672757724241,90.71,12.367,12.338,30.0]
[1672757724439,87.21,12.367,12.338,30.0]
[1672757724650,87.21,12.367,12.339,64.21123234]
[1672757724862,87.21,12.367,12.34,30.0]
[1672757725298,87.21,12.367,12.341,64.21123234]
[1672757727821,87.21,12.367,12.321,30.0]
[1672757728132,87.21,12.367,12.332,30.0]
[1672757728346,87.21,12.367,12.331,109.0954]
[1672757728758,41.63010709,12.362,12.331,109.0954]
[1672757728969,205.7778,12.361,12.331,109.0954]
[1672757729502,145.0378,12.361,12.331,109.0954]
[1672757729713,145.0378,12.361,12.333,30.0]
[1672757729916,90.74,12.36,12.333,30.0]
[1672757730662,90.74,12.36,12.334,64.21123234]
[1672757731488,90.74,12.36,12.335,30.0]
[1672757731908,90.74,12.36,12.336,125.07123234]
[1672757732126,90.74,12.36,12.337,30.0]
[1672757732336,90.74,12.36,12.338,60.85]
[1672757732545,90.74,12.36,12.339,30.0]
[1672757732755,90.74,12.36,12.34,60.84]
[1672757733184,90.74,12.36,12.34,64.21123234]
[1672757733382,90.74,12.36,12.342,30.0]
[1672757733710,90.74,12.36,12.343,64.21123234]
[1672757733921,30.0,12.36,12.344,60.82]
[1672757734133,90.74,12.36,12.344,60.82]
[1672757734336,90.74,12.36,12.345,64.21123234]
[1672757734545,30.0,12.36,12.345,64.21123234]
[1672757736015,30.0,12.358,12.345,64.21123234]
[1672757737385,30.0,12.358,12.346,60.81]
[1672757737812,30.0,12.358,12.347,64.21123234]
[1672757738975,30.0,12.356,12.347,64.21123234]
[1672757739284,60.77,12.355,12.336,60.86]
[1672757739490,60.77,12.355,12.335,60.87]
[1672757739704,114.68,12.354,12.335,60.87]
[1672757739894,30.0,12.353,12.336,30.0]
[1672757740104,30.0,12.353,12.337,60.86]
[1672757740525,30.0,12.353,12.336,30.0]
[1672757740755,30.0,12.353,12.337,60.86]
[1672757741383,30.0,12.353,12.336,60.86]
[1672757742010,30.0,12.353,12.335,60.87]
[1672757742218,60.78,12.352,12.335,60.87]
[1672757742439,60.78,12.352,12.334,72.7358]
[1672757742849,30.0,12.351,12.334,72.7358]
[1672757743062,60.79,12.35,12.334,72.7358]
[1672757743276,60.79,12.35,12.335,60.87]
[1672757743713,90.79,12.351,12.334,72.7358]
[1672757744332,90.79,12.351,12.33,60.89]
[1672757744537,28.54542651,12.35,12.322,251.5768]
[1672757744741,60.8,12.349,12.322,251.5768]
[1672757744956,30.0,12.348,12.323,30.0]
[1672757745168,60.81,12.347,12.324,60.92]
[1672757745377,253.7036,12.347,12.324,133.2173]
[1672757745808,30.0,12.346,12.325,30.0]
[1672757746015,30.0,12.346,12.326,60.91]
[1672757746016,103.5769,12.346,12.326,60.91]
[1672757746764,73.5769,12.346,12.326,60.91]
[1672757746969,73.5769,12.346,12.327,30.0]
[1672757747276,73.5769,12.346,12.315,30.0]
[1672757747486,61.73861611,12.344,12.315,30.0]
[1672757747701,30.0,12.341,12.315,30.0]
[1672757747894,61.73861611,12.339,12.316,60.96]
[1672757748105,61.73861611,12.337,12.316,60.96]
[1672757748329,61.73861611,12.338,12.316,60.96]
[1672757748863,61.73861611,12.338,12.317,30.0]
[1672757749053,61.73861611,12.338,12.318,60.95]
[1672757749268,118.9079,12.339,12.318,60.95]
[1672757749478,118.9079,12.339,12.318,120.47900533]
[1672757749904,30.0,12.338,12.318,60.95]
[1672757750222,30.0,12.336,12.316,60.96]
[1672757750440,122.60861611,12.335,12.316,60.96]
[1672757750966,61.73861611,12.333,12.317,30.0]
[1672757751276,60.87,12.335,12.318,60.95]
[1672757751680,70.0327,12.336,12.318,60.95]
[1672757751894,70.0327,12.336,12.319,30.0]
[1672757751895,57.41354288,12.335,12.319,30.0]
[1672757752212,90.87,12.335,12.319,30.0]
[1672757752424,30.0,12.334,12.319,30.0]
[1672757753260,90.87,12.335,12.319,30.0]
[1672757753800,30.0,12.334,12.319,30.0]
[1672757754744,30.0,12.334,12.318,60.95]
[1672757755144,26.93021763,12.333,12.318,60.95]
[1672757755566,41.28968675,12.331,12.318,60.95]
[1672757755786,41.28968675,12.329,12.306,30.0]
[1672757756000,41.9887612,12.327,12.306,30.0]
[1672757756209,30.0,12.326,12.306,30.0]
[1672757756425,41.9887612,12.325,12.306,30.0]
[1672757756853,30.0,12.324,12.306,30.0]
[1672757757055,41.9887612,12.323,12.306,30.0]
[1672757757566,41.9887612,12.325,12.306,30.0]
[1672757757776,114.8560612,12.325,12.306,30.0]
[1672757758199,41.9887612,12.323,12.306,30.0]
[1672757758405,30.0,12.322,12.306,30.0]
[1672757758615,41.9887612,12.321,12.306,30.0]
[1672757758832,41.9887612,12.319,12.306,30.0]
[1672757759246,41.9887612,12.333,12.306,30.0]
[1672757759457,41.9887612,12.328,12.309,30.0]
[1672757759668,131.6559,12.329,12.309,30.0]
[1672757759896,131.6559,12.329,12.31,58.20263256]
[1672757760516,131.6559,12.329,12.311,30.0]
[1672757760939,131.6559,12.329,12.312,58.20263256]
[1672757761463,131.6559,12.329,12.313,30.0]
[1672757761887,131.6559,12.329,12.314,58.20263256]
[1672757762295,131.6559,12.329,12.315,30.0]
[1672757762840,131.6559,12.329,12.317,30.0]
[1672757763038,108.3177,12.329,12.316,58.20263256]
[1672757763254,30.0,12.328,12.307,53.4763]
[1672757763569,100.9765,12.328,12.307,53.4763]
[1672757764619,24.45707788,12.327,12.307,53.4763]
[1672757765480,93.94737788,12.327,12.307,53.4763]
[1672757765791,69.4903,12.327,12.307,53.4763]
[1672757766220,69.4903,12.327,12.307,103.96559923]
[1672757767574,30.0,12.326,12.307,103.96559923]
[1672757769251,30.0,12.326,12.307,23.4763]
[1672757769454,30.70987094,12.325,12.307,23.4763]
[1672757769674,30.0,12.324,12.307,23.4763]
[1672757769882,30.0,12.322,12.307,23.4763]
[1672757770099,38.14571389,12.321,12.305,69.819]
[1672757770410,149.69991389,12.321,12.305,69.819]
[1672757770630,30.0,12.32,12.305,69.819]
[1672757770822,41.32391,12.319,12.305,69.819]
[1672757771243,30.0,12.318,12.305,69.819]
[1672757771452,42.48916497,12.317,12.305,69.819]
[1672757771663,30.0,12.318,12.305,50.48929923]
[1672757771878,46.58950737,12.317,12.305,50.48929923]
[1672757772191,46.58950737,12.317,12.304,32.644347]
[1672757772942,46.58950737,12.315,12.304,32.644347]
[1672757773348,46.58950737,12.315,12.304,83.13364623]
[1672757773769,30.0,12.314,12.304,32.644347]
[1672757773973,52.76489503,12.313,12.304,32.644347]
[1672757775460,52.76489503,12.315,12.304,32.644347]
[1672757776172,52.76489503,12.315,12.304,83.13364623]
[1672757777585,30.0,12.314,12.304,83.13364623]
[1672757777781,52.76489503,12.313,12.304,83.13364623]
[1672757778113,52.76489503,12.315,12.304,83.13364623]
[1672757778323,52.76489503,12.317,12.304,83.13364623]
[1672757778533,30.0,12.316,12.304,83.13364623]
[1672757778848,52.76489503,12.315,12.304,83.13364623]
[1672757780090,30.0,12.314,12.304,83.13364623]
[1672757780308,52.76489503,12.313,12.304,32.644347]
[1672757780519,52.76489503,12.311,12.304,32.644347]
[1672757780945,52.76489503,12.309,12.304,32.644347]
[1672757781154,52.76489503,12.313,12.304,32.644347]
[1672757781772,30.0,12.312,12.304,32.644347]
[1672757781983,52.76489503,12.311,12.304,32.644347]
[1672757782183,30.0,12.31,12.304,32.644347]
[1672757782412,52.76489503,12.309,12.304,32.644347]
[1672757782829,52.76489503,12.307,12.304,32.644347]
[1672757784506,52.76489503,12.307,12.304,4.7e-05]
[1672757785445,0.059953,12.303,12.301,64.4178972]
[1672757785885,52.76489503,12.302,12.301,97.0556042]
[1672757786417,0.059953,12.303,12.302,30.0]
[1672757786815,0.059953,12.303,12.301,97.0556042]
[1672757787248,0.059953,12.303,12.301,147.54490343]
[1672757788726,0.059953,12.303,12.301,97.0556042]
[1672757789225,0.059953,12.303,12.301,147.54490343]
[1672757789438,0.059953,12.303,12.301,97.0556042]
[1672757795446,24.96482319,12.302,12.301,97.0556042]
[1672757796486,0.059953,12.303,12.301,97.0556042]
[1672757799443,0.059953,12.303,12.301,147.54490343]
[1672757799857,0.059953,12.303,12.301,97.0556042]
[1672757800681,0.059953,12.303,12.302,88.05282056]
[1672757802598,0.059953,12.303,12.302,58.05282056]
[1672757805314,0.059953,12.303,12.302,87.11282056]
[1672757809741,0.059953,12.303,12.302,29.06]
[1672757810157,61.079953,12.303,12.302,29.06]
[1672757810365,0.059953,12.303,12.301,97.0556042]
[1672757810582,61.03,12.302,12.301,97.0556042]
[1672757811405,0.059953,12.303,12.301,97.0556042]
[1672757811824,61.079953,12.303,12.301,97.0556042]
[1672757813101,30.0,12.302,12.301,97.0556042]
[1672757813291,91.03,12.302,12.301,97.0556042]
[1672757814133,91.03,12.302,12.289,69.8465]
[1672757814367,61.03,12.301,12.289,69.8465]
[1672757814565,42.03891212,12.3,12.277,30.0]
[1672757814780,30.0,12.298,12.277,30.0]
[1672757814973,103.08891212,12.297,12.277,30.0]
[1672757815189,30.0,12.296,12.289,32.668277]
[1672757815413,103.09891212,12.295,12.289,32.668277]
[1672757816049,61.06,12.295,12.289,32.668277]
[1672757816468,61.05,12.297,12.289,32.668277]
[1672757817218,30.0,12.296,12.289,32.668277]
[1672757817403,30.0,12.294,12.289,32.668277]
[1672757818147,61.06,12.295,12.289,32.668277]
[1672757818356,30.0,12.296,12.289,32.668277]
[1672757818682,61.06,12.295,12.289,32.668277]
[1672757818877,30.0,12.294,12.289,32.668277]
[1672757819089,61.07,12.293,12.289,32.668277]
[1672757819509,30.0,12.296,12.289,32.668277]
[1672757819714,61.06,12.295,12.289,32.668277]
[1672757819925,30.0,12.294,12.289,32.668277]
[1672757820458,61.06,12.295,12.289,32.668277]
[1672757820880,61.05,12.297,12.289,32.668277]
[1672757821290,61.04,12.299,12.289,32.668277]
[1672757821505,30.0,12.299,12.289,94.54309756]
[1672757821710,61.04,12.3,12.289,94.54309756]
[1672757821927,61.03,12.302,12.29,5.57]
[1672757822255,61.03,12.302,12.291,61.87482056]
[1672757822468,61.01,12.305,12.291,61.87482056]
[1672757822655,24.9151,12.301,12.292,30.0]
[1672757822860,24.9151,12.301,12.291,61.87482056]
[1672757823091,24.9151,12.301,12.293,61.87482056]
[1672757823912,47.4336,12.305,12.294,30.0]
[1672757824137,60.99,12.309,12.294,30.0]
[1672757824138,0.059953,12.303,12.294,30.0]
[1672757824356,115.5166,12.314,12.303,74.27735382]
[1672757824560,101.654,12.317,12.303,74.27735382]
[1672757824776,101.654,12.317,12.3,5.66]
[1672757824971,60.96,12.315,12.301,72.6162913]
[1672757825929,30.0,12.314,12.301,72.6162913]
[1672757826142,60.97,12.313,12.301,72.6162913]
[1672757826333,60.96,12.315,12.301,72.6162913]
[1672757826543,60.96,12.316,12.302,30.0]
[1672757827068,60.96,12.316,12.303,72.6162913]
[1672757827909,30.0,12.315,12.303,72.6162913]
[1672757828138,58.47,12.314,12.303,72.6162913]
[1672757829083,30.0,12.313,12.303,72.6162913]
[1672757829313,60.98,12.312,12.303,72.6162913]
[1672757829716,60.97,12.314,12.303,72.6162913]
[1672757829927,30.0,12.313,12.303,72.6162913]
[1672757830253,60.98,12.312,12.297,69.4102]
[1672757830443,60.98,12.312,12.298,30.0]
[1672757830655,60.98,12.312,12.298,102.6162913]
[1672757831090,60.97,12.314,12.299,72.6162913]
[1672757831528,30.0,12.313,12.3,30.0]
[1672757831916,30.0,12.313,12.301,72.6162913]
[1672757832669,60.98,12.312,12.301,72.6162913]
[1672757832887,90.96,12.315,12.301,72.6162913]
[1672757834454,90.96,12.315,12.297,69.4102]
[1672757834663,90.96,12.315,12.3,5.63]
[1672757834983,90.96,12.315,12.301,72.6162913]
[1672757835807,90.96,12.315,12.289,32.668277]
[1672757835808,11.28,12.31,12.289,32.668277]
[1672757836014,60.99,12.309,12.289,32.668277]
[1672757836437,30.0,12.308,12.289,32.668277]
[1672757836770,61.0,12.307,12.289,32.668277]
[1672757836960,30.0,12.306,12.289,32.668277]
[1672757837172,87.31574656,12.305,12.289,32.668277]
[1672757837914,35.08069263,12.302,12.289,32.668277]
[1672757838238,35.08069263,12.3,12.289,32.668277]
[1672757838440,61.04,12.299,12.289,32.668277]
[1672757838654,35.08069263,12.298,12.289,32.668277]
[1672757838983,91.05,12.297,12.289,32.668277]
[1672757840351,61.05,12.297,12.289,32.668277]
[1672757840665,30.0,12.296,12.289,32.668277]
[1672757840847,61.06,12.295,12.289,32.668277]
[1672757841711,30.0,12.296,12.289,32.668277]
[1672757842436,61.05,12.298,12.289,32.668277]
[1672757842847,30.0,12.297,12.289,32.668277]
[1672757843578,61.06,12.296,12.289,32.668277]
[1672757843784,30.0,12.295,12.289,32.668277]
[1672757844340,61.07,12.294,12.289,32.668277]
[1672757844649,30.0,12.293,12.289,32.668277]
[1672757844837,61.08,12.292,12.289,32.668277]
[1672757845482,61.07,12.294,12.289,32.668277]
[1672757846112,61.06,12.296,12.289,32.668277]
[1672757848660,30.0,12.297,12.289,32.668277]
[1672757851573,91.04,12.299,12.289,32.668277]
[1672757851997,133.0784,12.302,12.289,32.668277]
[1672757852209,133.0784,12.302,12.29,57.42868521]
[1672757852210,72.0484,12.302,12.29,57.42868521]
[1672757852431,24.6632,12.302,12.291,30.0]
[1672757852632,24.6632,12.302,12.291,81.79868521]
[1672757852842,24.6632,12.302,12.292,51.79868521]
[1672757853585,24.6632,12.302,12.293,30.0]
[1672757854114,24.6632,12.302,12.294,59.64201854]
[1672757854644,24.6632,12.302,12.295,30.0]
[1672757854827,114.671,12.305,12.295,30.0]
[1672757855040,114.671,12.305,12.296,66.31535187]
[1672757855477,114.671,12.305,12.297,30.0]
[1672757856009,114.671,12.305,12.298,66.31535187]
[1672757856832,47.0842,12.307,12.298,66.31535187]
[1672757857039,169.1017,12.31,12.298,66.31535187]
[1672757857674,30.0,12.309,12.284,30.0]
[1672757857892,61.0,12.308,12.284,30.0]
[1672757858098,132.5397,12.308,12.284,30.0]
[1672757858308,30.0,12.307,12.284,30.0]
[1672757858513,30.0,12.305,12.284,30.0]
[1672757858729,61.02,12.304,12.284,30.0]
[1672757859377,30.0,12.303,12.284,30.0]
[1672757859575,61.03,12.302,12.284,30.0]
[1672757860318,61.03,12.302,12.284,90.56802587]
[1672757860724,61.03,12.302,12.289,93.23630287]
[1672757862544,30.0,12.303,12.289,93.23630287]
[1672757862719,61.03,12.302,12.289,32.668277]
[1672757863576,30.0,12.301,12.289,32.668277]
[1672757863769,66.64,12.3,12.282,47.5591]
[1672757863978,30.0,12.299,12.282,47.5591]
[1672757864206,170.4945,12.298,12.282,47.5591]
[1672757864608,30.0,12.297,12.282,47.5591]
[1672757864819,30.0,12.295,12.282,47.5591]
[1672757865036,37.33779249,12.293,12.282,32.67193]
[1672757865238,67.33779249,12.291,12.282,32.67193]
[1672757865459,30.0,12.289,12.282,32.67193]
[1672757865666,61.09,12.29,12.282,32.67193]
[1672757865866,24.83204167,12.293,12.282,32.67193]
[1672757866080,30.0,12.295,12.282,32.67193]
[1672757866081,61.08,12.292,12.282,32.67193]
[1672757866416,61.07,12.294,12.282,32.67193]
[1672757867251,30.0,12.293,12.282,32.67193]
[1672757867452,30.0,12.291,12.282,32.67193]
[1672757867665,61.09,12.29,12.282,32.67193]
[1672757868716,24.28995562,12.289,12.282,32.67193]
[1672757868930,61.09,12.29,12.282,32.67193]
[1672757869261,31.34487118,12.289,12.282,32.67193]
[1672757869564,31.34487118,12.287,12.282,32.67193]
[1672757870419,30.0,12.286,12.282,32.67193]
[1672757870854,25.29947034,12.285,12.282,32.67193]
[1672757871270,30.0,12.288,12.282,32.67193]
[1672757871799,25.75556398,12.287,12.282,32.67193]
[1672757872958,30.0,12.289,12.282,32.67193]
[1672757873357,61.09,12.29,12.282,32.67193]
[1672757873570,30.0,12.291,12.282,32.67193]
[1672757873890,61.09,12.29,12.282,32.67193]
[1672757874516,30.0,12.289,12.283,60.56802587]
[1672757875151,30.0,12.289,12.282,32.67193]
[1672757875895,30.0,12.289,12.271,30.0]
[1672757876206,195.71970147,12.288,12.273,60.56802587]
[1672757876418,29.90067081,12.286,12.268,30.0]
[1672757876636,91.11,12.285,12.268,30.0]
[1672757876834,33.79474435,12.284,12.268,30.0]
[1672757877160,33.79474435,12.284,12.266,90.56802587]
[1672757877161,35.87118342,12.282,12.27,44.663278]
[1672757877359,35.87118342,12.28,12.27,44.663278]
[1672757877575,61.13,12.282,12.27,105.23130387]
[1672757877990,61.12,12.283,12.27,105.23130387]
[1672757878206,24.62517866,12.282,12.271,30.0]
[1672757878523,24.5715,12.285,12.271,30.0]
[1672757878852,24.5715,12.285,12.272,60.56802587]
[1672757879035,24.5715,12.285,12.273,30.0]
[1672757879245,24.5715,12.285,12.272,60.56802587]
[1672757879453,30.0,12.284,12.274,60.56802587]
[1672757880076,24.5715,12.285,12.274,60.56802587]
[1672757880286,30.0,12.284,12.274,60.56802587]
[1672757880715,61.12,12.283,12.274,60.56802587]
[1672757880938,61.12,12.283,12.27,44.663278]
[1672757881348,30.0,12.282,12.27,44.663278]
[1672757881569,30.0,12.282,12.27,105.23130387]
[1672757881773,61.12,12.283,12.27,105.23130387]
[1672757881984,72.9775,12.285,12.271,30.0]
[1672757882307,72.9775,12.285,12.28,11.97]
[1672757882520,30.0,12.287,12.273,30.0]
[1672757882733,30.0,12.287,12.277,60.56802587]
[1672757884317,107.6013,12.288,12.277,60.56802587]
[1672757885450,30.0,12.287,12.277,60.56802587]
[1672757886086,107.6013,12.288,12.277,60.56802587]
[1672757886315,107.6013,12.288,12.28,11.94]
[1672757886718,107.6013,12.288,12.281,60.56802587]
[1672757887254,132.8013,12.29,12.281,60.56802587]
[1672757887459,61.09,12.29,12.281,60.56802587]
[1672757890621,30.0,12.289,12.281,60.56802587]
[1672757890821,61.1,12.288,12.281,60.56802587]
[1672757891037,61.1,12.288,12.274,46.9274]
[1672757891243,30.0,12.287,12.274,46.9274]
[1672757891451,61.11,12.286,12.274,46.9274]
[1672757891672,61.11,12.286,12.275,65.59469254]
[1672757891883,30.0,12.285,12.275,65.59469254]
[1672757892079,61.12,12.284,12.27,32.703278]
[1672757892291,30.0,12.283,12.27,32.703278]
[1672757892520,61.13,12.282,12.27,32.703278]
[1672757893250,30.0,12.281,12.27,32.703278]
[1672757893459,30.0,12.281,12.241,133.36677864]
[1672757893460,121.32,12.28,12.241,133.36677864]
[1672757893673,94.47815565,12.265,12.246,153.17267704]
[1672757893862,61.22,12.264,12.246,153.17267704]
[1672757894076,57.25533879,12.263,12.254,32.745036]
[1672757894297,91.23,12.262,12.254,32.745036]
[1672757894707,57.25533879,12.261,12.254,32.745036]
[1672757894942,61.24,12.26,12.254,32.745036]
[1672757895348,57.25533879,12.261,12.254,32.745036]
[1672757895552,57.25533879,12.259,12.254,32.745036]
[1672757895763,57.25533879,12.263,12.254,32.745036]
[1672757896092,94.47815565,12.265,12.254,32.745036]
[1672757896295,57.25533879,12.264,12.257,30.0]
[1672757896710,94.47815565,12.265,12.257,30.0]
[1672757896916,94.47815565,12.265,12.26,60.18]
[1672757897128,28.86651243,12.265,12.261,30.0]
[1672757897770,30.0,12.279,12.266,32.49755854]
[1672757898090,30.0,12.279,12.262,58.16559585]
[1672757898308,30.0,12.279,12.253,30.0]
[1672757898309,61.15,12.278,12.253,30.0]
[1672757898707,61.15,12.278,12.257,59.30383144]
[1672757899126,30.0,12.277,12.258,30.0]
[1672757899351,61.16,12.276,12.26,12.05]
[1672757899546,30.0,12.279,12.26,60.31]
[1672757899758,174.7072,12.28,12.26,60.31]